bitfinex/quotes_SOLUSD_20240926
["timestamp","ask_amount","ask_price","bid_price","bid_amount"]
[1727349084067,0.2430764,152.73,152.7,13.20571748]
[1727349084673,0.2430764,152.73,152.72,13.20571748]
[1727349084850,0.2430764,152.73,152.72,14.51514826]
[1727349085262,0.2430764,152.73,152.72,21.06304826]
[1727349085455,0.2430764,152.73,152.72,14.51514826]
[1727349086883,0.2430764,152.73,152.72,14.51506758]
[1727349087059,0.2430764,152.73,152.72,21.06296758]
[1727349088984,0.2430764,152.73,152.72,19.75361748]
[1727349089355,0.2430764,152.73,152.72,13.20571748]
[1727349089862,6.7905764,152.73,152.69,6.5492]
[1727349090075,0.2430764,152.73,152.69,6.5492]
[1727349090376,6.7906764,152.73,152.69,6.5492]
[1727349090780,0.2430764,152.73,152.7,21.06367005]
[1727349090969,0.2430764,152.73,152.7,19.75411748]
[1727349097676,0.2430764,152.73,152.71,6.548]
[1727349098763,0.2430764,152.73,152.72,1.30936523]
[1727349098966,0.2430764,152.73,152.7,36.12561748]
[1727349099286,0.2430764,152.73,152.71,1.30942792]
[1727349099486,0.2430764,152.73,152.7,36.12561748]
[1727349100584,6.7905764,152.73,152.7,13.20571748]
[1727349101690,6.5479,152.72,152.68,19.75511748]
[1727349101984,6.5483,152.71,152.67,36.12981748]
[1727349102185,6.5483,152.71,152.68,6.5496]
[1727349102889,0.2430764,152.73,152.67,16.3742]
[1727349103188,6.5484,152.71,152.67,22.9241]
[1727349103380,6.548,152.72,152.68,6.5496]
[1727349103906,6.548,152.72,152.69,1.309674]
[1727349105171,6.7906764,152.73,152.69,7.858874]
[1727349105490,0.2430764,152.73,152.7,6.5486]
[1727349105880,0.2430764,152.73,152.69,29.57821748]
[1727349106082,6.7906764,152.73,152.69,36.12731748]
[1727349106282,6.7906764,152.73,152.7,6.5487]
[1727349106283,0.2430764,152.73,152.7,6.5487]
[1727349106578,0.2430764,152.73,152.69,22.9215]
[1727349106780,0.2430764,152.73,152.7,1.30962105]
[1727349106978,6.7906764,152.73,152.7,1.30962105]
[1727349107693,0.2430764,152.73,152.7,7.85822105]
[1727349108997,0.2430764,152.73,152.7,6.5486]
[1727349109796,6.7905764,152.73,152.69,36.12721748]
[1727349110175,6.7905764,152.73,152.7,1.30955306]
[1727349110586,6.7905764,152.73,152.69,22.9215]
[1727349111297,6.7905764,152.73,152.7,1.30958404]
[1727349111678,6.7905764,152.73,152.69,22.9215]
[1727349111877,6.5481,152.72,152.69,16.3725]
[1727349112499,6.5481,152.72,152.69,17.68215837]
[1727349112705,6.5481,152.72,152.69,16.3725]
[1727349113700,0.2430764,152.73,152.66,62.33341748]
[1727349114007,6.5486,152.71,152.67,6.5496]
[1727349115789,6.5488,152.7,152.66,22.9256]
[1727349118311,6.5488,152.7,152.67,6.55]
[1727349119489,0.2430764,152.73,152.67,6.55]
[1727349119687,6.5485,152.71,152.67,6.55]
[1727349120416,6.5485,152.71,152.67,7.85979707]
[1727349120707,6.5485,152.71,152.67,6.55]
[1727349120914,6.5485,152.71,152.67,7.85979495]
[1727349121215,6.5485,152.71,152.67,21.06551243]
[1727349121416,0.2430764,152.73,152.68,6.5492]
[1727349121417,6.5479,152.72,152.68,6.5492]
[1727349121714,0.2430764,152.73,152.69,14.51539671]
[1727349122009,0.2430764,152.73,152.7,6.5485]
[1727349122921,6.7905764,152.73,152.7,6.5485]
[1727349124118,6.7905764,152.73,152.69,21.06449671]
[1727349124317,0.2430764,152.73,152.68,16.3739]
[1727349124495,6.5483,152.71,152.68,16.3739]
[1727349125696,6.5483,152.71,152.68,22.9234]
[1727349126391,6.548,152.72,152.69,1.30968411]
[1727349126620,6.7906764,152.73,152.69,7.85848411]
[1727349126819,6.7906764,152.73,152.69,19.75451748]
[1727349127293,6.7906764,152.73,152.69,21.06413411]
[1727349127491,0.2430764,152.73,152.68,16.3739]
[1727349127810,6.5482,152.72,152.68,22.9233]
[1727349128725,6.5484,152.71,152.68,16.3739]
[1727349128894,0.2430764,152.73,152.63,8.11943889]
[1727349129094,6.5492,152.69,152.65,22.9273]
[1727349129320,6.5492,152.69,152.65,16.3765]
[1727349129698,16.2235,152.72,152.65,16.3765]
[1727349130021,16.2235,152.72,152.63,6.5514]
[1727349130022,6.55,152.68,152.63,6.5514]
[1727349136919,6.55,152.68,152.64,6.5513]
[1727349137127,6.55,152.68,152.64,7.86133236]
[1727349137295,6.55,152.68,152.64,6.5513]
[1727349137501,6.55,152.68,152.65,1.31000542]
[1727349138307,6.5492,152.69,152.65,6.5508]
[1727349138514,6.5366,152.71,152.64,16.3779]
[1727349138715,6.5496,152.68,152.64,24.23911524]
[1727349143833,6.5366,152.71,152.64,17.68791524]
[1727349144226,6.5492,152.69,152.65,6.5508]
[1727349144735,6.5366,152.71,152.64,17.68791524]
[1727349144940,6.5496,152.68,152.64,24.23911524]
[1727349146833,6.5496,152.68,152.64,22.9291]
[1727349147335,6.5366,152.71,152.61,16.3808]
[1727349147538,6.5505,152.66,152.62,19.75751748]
[1727349148329,23.776884,152.7,152.63,6.5517]
[1727349148330,6.5502,152.67,152.63,6.5517]
[1727349150119,23.776884,152.7,152.61,22.9333]
[1727349150120,6.551,152.65,152.61,22.9333]
[1727349151417,6.5514,152.64,152.61,16.3808]
[1727349153630,15.4171,152.67,152.61,29.58651748]
[1727349153818,6.551,152.65,152.61,37.44933242]
[1727349154022,6.5506,152.66,152.62,6.5522]
[1727349154335,6.5506,152.66,152.63,1.310169]
[1727349155914,15.4171,152.67,152.63,1.310169]
[1727349156118,6.5513,152.64,152.61,16.3808]
[1727349156313,15.4171,152.67,152.58,16.3841]
[1727349156520,6.5524,152.62,152.58,22.9379]
[1727349158439,6.8328673,152.71,152.62,43.776884]
[1727349158625,0.2430764,152.73,152.7,19.75441748]
[1727349158821,0.2430764,152.73,152.7,6.5487]
[1727349159028,0.2430764,152.73,152.7,19.75441748]
[1727349159622,0.2430764,152.73,152.69,16.3725]
[1727349159623,6.7905764,152.73,152.69,16.3725]
[1727349161327,0.2430764,152.73,152.67,13.20571748]
[1727349161526,0.2430764,152.73,152.66,16.3758]
[1727349162329,0.2430764,152.73,152.67,19.75571748]
[1727349162530,6.548,152.72,152.68,1.3098013]
[1727349162832,6.548,152.72,152.68,7.8593013]
[1727349163430,0.2430764,152.73,152.69,19.75481748]
[1727349164539,6.7905764,152.73,152.69,19.75481748]
[1727349164936,6.7905764,152.73,152.69,13.20571748]
[1727349167960,6.7905764,152.73,152.69,21.06438603]
[1727349168172,0.2430764,152.73,152.68,22.9228]
[1727349168339,6.548,152.72,152.68,22.9228]
[1727349168537,6.548,152.72,152.68,24.23259929]
[1727349168962,6.548,152.72,152.68,22.9228]
[1727349170258,6.548,152.72,152.68,24.23259494]
[1727349170760,6.548,152.72,152.68,22.9228]
[1727349171363,6.5483,152.71,152.68,16.3733]
[1727349172060,6.5483,152.71,152.66,6.5503]
[1727349172740,6.5483,152.71,152.65,29.58261748]
[1727349172943,6.5492,152.69,152.65,22.9277]
[1727349181564,42.7665764,152.73,152.66,1.3099926]
[1727349181766,6.5481,152.72,152.68,6.5496]
[1727349182247,6.5483,152.71,152.67,19.75561748]
[1727349186974,6.5483,152.71,152.67,6.5499]
[1727349189470,6.3973764,152.73,152.65,16.3769]
[1727349189778,6.5493,152.69,152.65,22.9276]
[1727349190157,6.5489,152.7,152.66,6.5504]
[1727349194585,6.5489,152.7,152.66,7.86031405]
[1727349195771,0.2430764,152.73,152.7,6.5487]
[1727349195969,6.7905764,152.73,152.69,37.43693644]
[1727349196378,6.7905764,152.73,152.69,36.12731748]
[1727349197957,6.5487,152.7,152.66,22.9254]
[1727349198868,6.5487,152.7,152.66,16.3753]
[1727349200090,6.5487,152.7,152.66,22.9257]
[1727349204479,24.0199604,152.73,152.66,16.3753]
[1727349204685,6.5492,152.69,152.66,16.3753]
[1727349206384,6.5489,152.7,152.66,16.3753]
[1727349206893,6.5484,152.71,152.67,6.55]
[1727349210288,6.5484,152.71,152.66,36.13141748]
[1727349215878,6.5484,152.71,152.66,29.58101748]
[1727349216082,6.5484,152.71,152.67,6.55]
[1727349219699,6.5483,152.72,152.68,6.5495]
[1727349219874,6.5484,152.71,152.67,7.85973551]
[1727349220592,6.548,152.72,152.68,6.5495]
[1727349220786,6.548,152.72,152.69,1.30967751]
[1727349221466,6.548,152.72,152.68,6.5494]
[1727349221667,6.548,152.72,152.69,1.30967634]
[1727349223790,0.2430764,152.73,152.7,13.20571748]
[1727349225374,0.2430764,152.73,152.7,36.12581748]
[1727349229374,0.2430764,152.73,152.7,22.9201]
[1727349229693,6.7905764,152.73,152.7,16.3717]
[1727349230697,6.7905764,152.73,152.7,17.68130122]
[1727349230899,0.2430764,152.73,152.7,17.68130122]
[1727349231204,0.2430764,152.73,152.7,37.4356187]
[1727349232388,0.2430764,152.73,152.71,6.5483]
[1727349232585,0.2430764,152.73,152.72,1.309403]
[1727349232886,0.2430764,152.73,152.71,6.5483]
[1727349233780,0.2430764,152.73,152.72,1.30940189]
[1727349234182,0.2430764,152.73,152.71,6.5483]
[1727349234595,0.2430764,152.73,152.72,7.85730011]
[1727349234902,6.5483,152.72,152.67,16.541]
[1727349235101,0.2430764,152.73,152.68,1.3096526]
[1727349235288,6.5484,152.71,152.67,23.0909]
[1727349235695,6.5488,152.7,152.66,22.9258]
[1727349237103,6.5488,152.7,152.67,1.30973407]
[1727349237597,0.2430764,152.73,152.67,1.30973407]
[1727349237797,6.5485,152.71,152.67,7.85973407]
[1727349238207,6.5485,152.71,152.67,6.55]
[1727349238929,6.5488,152.7,152.66,22.9258]
[1727349240010,6.5485,152.71,152.67,7.85973412]
[1727349240706,0.2430764,152.73,152.67,14.5154516]
[1727349240912,6.5479,152.72,152.68,6.5494]
[1727349241994,6.5479,152.72,152.69,1.30958416]
[1727349242306,0.2430764,152.73,152.7,6.5486]
[1727349242486,6.7905764,152.73,152.69,19.75481748]
[1727349242900,6.5479,152.72,152.69,19.75481748]
[1727349244018,6.5486,152.71,152.67,6.5499]
[1727349245800,6.5489,152.7,152.66,6.5504]
[1727349246288,6.5485,152.71,152.67,6.55]
[1727349246488,6.5491,152.7,152.66,6.5505]
[1727349247495,15.5393764,152.73,152.65,29.58211748]
[1727349247698,6.5484,152.71,152.67,6.5499]
[1727349248393,6.5484,152.71,152.68,1.30972811]
[1727349248593,22.0871764,152.73,152.68,1.30972811]
[1727349248809,22.0871764,152.73,152.68,7.85902811]
[1727349249727,6.5479,152.72,152.68,6.5495]
[1727349251994,6.5483,152.71,152.67,36.13001748]
[1727349252590,6.5482,152.72,152.68,6.5496]
[1727349258717,6.5482,152.72,152.68,7.85926818]
[1727349260421,6.5482,152.72,152.68,6.5496]
[1727349261920,6.5482,152.72,152.68,7.85927344]
[1727349262620,6.5482,152.72,152.68,6.5496]
[1727349268130,15.5393764,152.73,152.68,1.30967885]
[1727349268445,0.2430764,152.73,152.71,36.12441748]
[1727349268630,0.2430764,152.73,152.71,29.57621748]
[1727349269310,0.2430764,152.73,152.71,16.3705]
[1727349269707,0.2430764,152.73,152.7,6.5486]
[1727349272225,0.2430764,152.73,152.71,1.30946083]
[1727349272441,0.2430764,152.73,152.72,7.85735831]
[1727349273234,0.2430764,152.73,152.72,6.5479]
[1727349276040,0.2430764,152.73,152.72,1.30931145]
[1727349278325,0.2430764,152.73,152.72,7.85721145]
[1727349278521,0.2430764,152.73,152.72,6.5479]
[1727349282015,0.2430764,152.73,152.72,19.75361748]
[1727349286054,0.2430764,152.73,152.72,43.53050148]
[1727349286736,0.2430764,152.73,152.72,63.53050148]
[1727349291450,0.2578351,152.77,152.73,43.776884]
[1727349291660,0.2578351,152.77,152.76,19.75191748]
[1727349295950,0.2578351,152.77,152.76,21.06077472]
[1727349297255,0.2578351,152.77,152.76,64.83765872]
[1727349298338,0.438837,152.82,152.8,6.5441]
[1727349298527,0.438837,152.82,152.81,14.51430652]
[1727349299158,0.438837,152.82,152.81,13.20571748]
[1727349299660,0.438837,152.82,152.79,16.3613]
[1727349299661,0.438837,152.82,152.79,36.11171748]
[1727349300334,0.438837,152.82,152.8,1.30873822]
[1727349300638,0.438837,152.82,152.8,7.85303822]
[1727349301362,0.438837,152.82,152.81,13.20571748]
[1727349301939,0.438837,152.82,152.8,19.75001748]
[1727349302570,0.438837,152.82,152.8,6.5443]
[1727349302739,0.438837,152.82,152.81,13.20571748]
[1727349303139,0.438837,152.82,152.8,6.5443]
[1727349303360,0.438837,152.82,152.81,13.20571748]
[1727349303551,0.438837,152.82,152.8,6.5443]
[1727349303754,0.438837,152.82,152.8,19.75001748]
[1727349304066,0.438837,152.82,152.81,1.30858596]
[1727349304753,0.438837,152.82,152.81,31.62944453]
[1727349308844,0.438837,152.82,152.81,30.320884]
[1727349309348,0.438837,152.82,152.81,31.62922717]
[1727349310166,0.438837,152.82,152.81,30.320884]
[1727349310762,0.438837,152.82,152.81,6.544]
[1727349311058,0.438837,152.82,152.81,19.74971748]
[1727349314468,0.438837,152.82,152.76,16.3651]
[1727349314762,6.5449,152.79,152.76,16.3651]
[1727349315365,6.5449,152.79,152.75,6.5463]
[1727349317151,6.5441,152.81,152.77,6.5454]
[1727349317362,6.5441,152.81,152.78,1.30887678]
[1727349319371,6.5441,152.81,152.77,6.5454]
[1727349321249,0.438837,152.82,152.78,6.545]
[1727349321459,0.438837,152.82,152.77,22.9096]
[1727349321972,6.544,152.81,152.77,22.9096]
[1727349322472,0.438837,152.82,152.78,14.51461573]
[1727349323367,0.438837,152.82,152.79,6.5448]
[1727349323874,0.438837,152.82,152.78,21.05981573]
[1727349324262,6.982537,152.82,152.78,6.5452]
[1727349327575,6.5441,152.81,152.77,16.364]
[1727349329573,6.5441,152.81,152.77,24.21860097]
[1727349330777,6.5441,152.81,152.77,37.42431845]
[1727349332658,6.5441,152.81,152.77,24.21860097]
[1727349333383,6.5441,152.81,152.77,22.9097]
[1727349333583,6.5441,152.81,152.77,24.21860193]
[1727349333778,6.5441,152.81,152.77,22.9097]
[1727349334481,6.5441,152.81,152.77,24.2186022]
[1727349334976,6.5441,152.81,152.77,22.9097]
[1727349335482,6.5445,152.8,152.77,22.9097]
[1727349336386,6.5445,152.8,152.77,16.364]
[1727349338476,6.5445,152.8,152.76,19.75161748]
[1727349339876,6.5445,152.8,152.77,1.30896359]
[1727349340281,6.982537,152.82,152.78,6.5452]
[1727349340461,6.982537,152.82,152.79,1.30882625]
[1727349340661,0.438837,152.82,152.81,6.544]
[1727349340881,0.438837,152.82,152.81,7.85263359]
[1727349341059,0.438837,152.82,152.81,31.62951759]
[1727349341258,0.438837,152.82,152.81,30.320884]
[1727349341565,0.438837,152.82,152.81,6.544]
[1727349342388,0.438837,152.82,152.81,7.85250363]
[1727349342581,0.438837,152.82,152.81,6.544]
[1727349343286,0.438837,152.82,152.81,7.85252448]
[1727349343880,0.438837,152.82,152.81,21.05824196]
[1727349344465,0.438837,152.82,152.81,14.51424196]
[1727349344665,0.438837,152.82,152.81,13.20571748]
[1727349345484,0.438837,152.82,152.81,19.74971748]
[1727349348395,0.438837,152.82,152.81,13.20571748]
[1727349348571,0.438837,152.82,152.8,16.3611]
[1727349348769,0.438837,152.82,152.8,36.11121748]
[1727349348968,0.438837,152.82,152.81,1.30871506]
[1727349349477,0.438837,152.82,152.81,7.85271506]
[1727349350267,0.438837,152.82,152.81,6.544]
[1727349351897,0.438837,152.82,152.81,7.85255498]
[1727349356195,0.438837,152.82,152.81,30.320884]
[1727349362785,0.438837,152.82,152.81,31.62920757]
[1727349363683,0.438837,152.82,152.81,51.62920757]
[1727349366909,0.2578351,152.87,152.86,6.5419]
[1727349367099,0.2578351,152.87,152.86,21.05567033]
[1727349368302,0.2578351,152.87,152.86,43.52450148]
[1727349370002,0.438837,152.91,152.9,30.317084]
[1727349370191,0.438837,152.91,152.9,44.83039196]
[1727349373311,0.438837,152.91,152.9,43.52280148]
[1727349374400,0.438837,152.91,152.9,44.83038847]
[1727349375995,0.438837,152.91,152.9,6.5402]
[1727349376530,0.438837,152.91,152.9,19.74591748]
[1727349376689,0.438837,152.91,152.9,21.05361372]
[1727349376883,0.438837,152.91,152.9,44.83049772]
[1727349378520,0.438837,152.91,152.9,43.52280148]
[1727349385518,0.438837,152.91,152.9,44.83029064]
[1727349386095,0.2578351,152.96,152.93,6.5386]
[1727349386401,0.2578351,152.96,152.94,13.20571748]
[1727349388312,0.2578351,152.96,152.93,19.74431748]
[1727349391504,6.7955351,152.96,152.93,13.20571748]
[1727349391818,0.2578351,152.96,152.95,13.20571748]
[1727349393513,0.2578351,152.96,152.95,19.74371748]
[1727349394016,0.2578351,152.96,152.95,13.20571748]
[1727349394408,0.2578351,152.96,152.95,14.51310869]
[1727349395824,0.2578351,152.96,152.95,21.05110869]
[1727349396928,0.2578351,152.96,152.95,44.82799269]
[1727349398425,0.2578351,152.96,152.95,44.82768643]
[1727349398733,0.2578351,152.96,152.95,43.52060148]
[1727349399023,0.2578351,152.96,152.95,44.8276091]
[1727349400611,0.2578351,152.96,152.95,43.52060148]
[1727349400928,0.2578351,152.96,152.95,44.82760741]
[1727349401102,0.438837,153.0,152.99,6.5363]
[1727349401297,0.438837,153.0,152.99,21.04891829]
[1727349401925,0.438837,153.0,152.99,19.74201748]
[1727349402602,0.438837,153.0,152.99,21.04893535]
[1727349402925,0.279208,153.0,152.99,14.51263535]
[1727349403122,0.279208,153.0,152.99,44.82581935]
[1727349406319,0.279208,153.0,152.99,30.313184]
[1727349406525,0.279208,153.0,152.99,43.51890148]
[1727349408423,16.3663,153.07,153.0,23.776884]
[1727349408620,16.3663,153.07,153.01,6.5352]
[1727349409219,16.3663,153.07,153.0,22.875]
[1727349410126,16.3663,153.07,152.97,16.3428]
[1727349410304,6.5339,153.05,153.01,6.5354]
[1727349410506,16.3663,153.07,153.0,16.3392]
[1727349410714,16.3663,153.07,153.01,6.5351]
[1727349410927,6.5339,153.05,153.01,6.5351]
[1727349411126,6.5335,153.06,153.02,6.5349]
[1727349412315,6.5335,153.06,153.01,6.5354]
[1727349413940,6.5359,153.01,152.97,16.3428]
[1727349414239,32.6994,153.07,152.95,20.0]
[1727349414240,6.5339,153.05,153.0,6.5356]
[1727349414545,6.5339,153.05,153.01,1.30694314]
[1727349415442,6.5334,153.06,153.01,6.5354]
[1727349415915,6.5334,153.06,152.99,16.3402]
[1727349416115,6.5334,153.06,153.02,6.535]
[1727349416737,22.8993,153.07,153.02,6.535]
[1727349417041,6.5334,153.06,153.02,6.535]
[1727349419114,16.3663,153.07,153.01,16.3381]
[1727349419315,22.8993,153.07,153.03,6.5346]
[1727349419723,22.8993,153.07,153.02,6.535]
[1727349420144,16.3663,153.07,153.02,6.535]
[1727349420344,6.5334,153.06,153.02,6.535]
[1727349420714,6.533,153.07,153.01,16.3381]
[1727349421014,6.533,153.07,153.03,6.5345]
[1727349421641,6.5326,153.08,153.04,7.84075398]
[1727349421921,6.5326,153.08,153.04,6.5341]
[1727349422150,6.5331,153.07,153.03,6.5345]
[1727349422637,6.5333,153.07,153.03,6.5346]
[1727349422839,0.4843464,153.09,153.07,16.3318]
[1727349423060,0.4843464,153.09,153.08,1.30632049]
[1727349423551,0.4843464,153.09,153.08,6.5325]
[1727349423957,0.4843464,153.09,153.08,7.83874583]
[1727349424165,0.4843464,153.09,153.08,31.61561121]
[1727349424467,0.4843464,153.09,153.08,50.309384]
[1727349424956,0.4843464,153.09,153.08,30.309384]
[1727349425530,0.3033445,153.14,153.08,66.852384]
[1727349425731,0.3033445,153.14,153.12,19.73641748]
[1727349425959,0.3033445,153.14,153.13,7.83611739]
[1727349426158,0.3033445,153.14,153.13,6.5303]
[1727349426362,0.3033445,153.14,153.13,7.83600872]
[1727349426953,0.3033445,153.14,153.13,6.5303]
[1727349428053,0.3033445,153.14,153.13,30.307184]
[1727349430957,0.3033445,153.14,153.13,31.61261599]
[1727349431472,0.1810019,153.18,153.17,6.5286]
[1727349431764,0.1810019,153.18,153.17,21.03967593]
[1727349432264,0.1810019,153.18,153.17,19.73431748]
[1727349433844,0.1810019,153.18,153.17,21.03967679]
[1727349434046,0.1810019,153.18,153.17,44.81656079]
[1727349434261,0.1810019,153.18,153.17,43.51120148]
[1727349434649,0.1810019,153.18,153.17,63.51120148]
[1727349436678,0.1810019,153.18,153.17,50.305484]
[1727349436855,0.1810019,153.18,153.17,63.51120148]
[1727349438565,0.1810019,153.18,153.16,16.3223]
[1727349438880,0.1810019,153.18,153.17,19.73431748]
[1727349439374,0.1810019,153.18,153.17,21.0395845]
[1727349439575,0.1810019,153.18,153.17,19.73431748]
[1727349439767,0.1810019,153.18,153.17,39.73431748]
[1727349439963,0.3305907,153.21,153.2,6.5274]
[1727349440160,0.3305907,153.21,153.2,21.0381158]
[1727349440353,0.3305907,153.21,153.2,44.8149998]
[1727349440555,0.3305907,153.21,153.2,43.51000148]
[1727349442762,0.3305907,153.21,153.2,6.5274]
[1727349442952,0.3305907,153.21,153.2,21.03826416]
[1727349444165,0.3305907,153.21,153.2,64.81514816]
[1727349444368,0.3305907,153.21,153.2,50.304284]
[1727349444566,0.3305907,153.21,153.2,63.51000148]
[1727349445969,0.3305907,153.21,153.2,64.81491411]
[1727349446283,0.3305907,153.21,153.2,63.51000148]
[1727349446654,0.3305907,153.21,153.2,64.81490606]
[1727349447182,0.3305907,153.21,153.2,63.51000148]
[1727349447768,0.3305907,153.21,153.2,64.81484619]
[1727349448475,0.3305907,153.21,153.2,63.51000148]
[1727349454878,0.3305907,153.21,153.2,64.81476047]
[1727349455081,0.3305907,153.21,153.2,63.51000148]
[1727349455587,0.3305907,153.21,153.2,64.8147599]
[1727349456167,0.3305907,153.21,153.2,63.51000148]
[1727349458387,18.6557748,153.3,153.25,6.5249]
[1727349460170,18.6557748,153.3,153.26,7.82942104]
[1727349460504,18.6557748,153.3,153.26,6.5247]
[1727349460877,6.524,153.28,153.24,6.5256]
[1727349461079,6.5245,153.27,153.23,6.526]
[1727349461397,6.5245,153.27,153.24,1.30491604]
[1727349461595,6.5245,153.27,153.23,6.526]
[1727349462475,12.1325748,153.3,153.24,1.3049172]
[1727349462801,6.5241,153.28,153.24,7.8303172]
[1727349462999,6.5241,153.28,153.24,6.5254]
[1727349463301,6.525,153.26,153.21,13.20571748]
[1727349463484,6.525,153.26,153.22,30.303284]
[1727349464015,6.5255,153.25,153.2,22.8451]
[1727349464301,6.5249,153.26,153.21,6.5267]
[1727349464694,6.5249,153.26,153.22,21.03708853]
[1727349464905,6.5249,153.26,153.22,19.73201748]
[1727349465686,16.3093,153.29,153.23,1.30498817]
[1727349465909,6.5245,153.27,153.22,19.73201748]
[1727349466301,16.3093,153.29,153.21,13.20571748]
[1727349466503,6.5248,153.26,153.21,19.73221748]
[1727349468689,18.6556748,153.3,153.26,6.5247]
[1727349468892,18.6556748,153.3,153.25,7.83005077]
[1727349469195,6.5236,153.29,153.25,7.83005077]
[1727349471289,6.5236,153.29,153.25,6.5252]
[1727349471607,6.5236,153.29,153.24,29.51891748]
[1727349471608,6.5236,153.29,153.24,36.04451748]
[1727349471904,6.5236,153.29,153.25,1.30485246]
[1727349472078,6.5236,153.29,153.24,36.04451748]
[1727349472282,6.5236,153.29,153.25,6.5252]
[1727349472482,6.5236,153.29,153.26,1.30482299]
[1727349472701,6.5236,153.29,153.25,6.5252]
[1727349474384,6.5236,153.29,153.25,7.8300371]
[1727349475509,6.5236,153.29,153.25,6.5252]
[1727349476805,12.1325748,153.3,153.24,16.3132]
[1727349477009,6.5241,153.28,153.24,22.8387]
[1727349477410,6.5241,153.28,153.24,24.14361292]
[1727349478609,6.5241,153.28,153.24,22.8387]
[1727349479811,6.5245,153.27,153.17,32.642]
[1727349480117,6.5245,153.27,153.23,6.5258]
[1727349480613,6.5245,153.27,153.24,1.30498224]
[1727349481001,6.5244,153.27,153.23,19.73151748]
[1727349481196,6.5242,153.28,153.24,7.83057528]
[1727349481395,6.5245,153.27,153.23,19.73161748]
[1727349481601,6.5241,153.28,153.24,1.3049676]
[1727349482019,6.5241,153.28,153.24,7.8303676]
[1727349482523,6.5241,153.28,153.24,6.5254]
[1727349483018,12.1325748,153.3,153.27,6.5241]
[1727349483223,18.6557748,153.3,153.26,22.8364]
[1727349485518,18.6556748,153.3,153.26,22.8364]
[1727349488000,12.1325748,153.3,153.26,16.3117]
[1727349488204,12.1325748,153.3,153.27,6.5244]
[1727349488921,15.8607,153.34,153.29,16.3089]
[1727349489127,0.5593841,153.36,153.32,13.20571748]
[1727349489501,22.1772,153.39,153.33,6.5215]
[1727349489717,22.1772,153.39,153.33,19.72721748]
[1727349489911,6.5202,153.37,153.33,19.72721748]
[1727349490221,6.5198,153.38,153.33,19.72721748]
[1727349490436,6.5206,153.36,153.33,13.20571748]
[1727349490731,6.5211,153.35,153.32,23.776884]
[1727349491320,6.5211,153.35,153.32,13.20571748]
[1727349491626,6.5207,153.36,153.32,19.72791748]
[1727349491826,6.5202,153.37,153.32,30.298784]
[1727349492004,6.5202,153.37,153.33,13.20571748]
[1727349492206,6.5199,153.38,153.35,13.20571748]
[1727349492409,6.5199,153.38,153.33,19.72741748]
[1727349492617,15.8607,153.39,153.31,22.8291]
[1727349492825,32.1596,153.39,153.3,6.5231]
[1727349493015,6.5223,153.32,153.28,16.3093]
[1727349493620,6.5223,153.32,153.28,36.03881748]
[1727349493822,22.464,153.37,153.28,36.03881748]
[1727349494028,22.464,153.37,153.28,29.51501748]
[1727349494242,6.5217,153.34,153.29,6.5234]
[1727349494598,22.464,153.37,153.29,6.5234]
[1727349494806,6.5217,153.34,153.3,1.30439211]
[1727349495020,6.5217,153.34,153.3,14.51010959]
[1727349495213,6.163,153.37,153.3,14.51010959]
[1727349495413,6.163,153.37,153.3,30.81750959]
[1727349495614,6.5211,153.35,153.31,6.5223]
[1727349496125,6.5211,153.35,153.31,30.299184]
[1727349496713,6.5211,153.35,153.32,1.30422187]
[1727349496907,6.5206,153.36,153.32,7.82642187]
[1727349497313,6.5206,153.36,153.32,1.30422187]
[1727349497727,6.5206,153.36,153.32,19.72781748]
[1727349497922,16.1281686,153.39,153.32,13.20571748]
[1727349498130,16.1281686,153.39,153.33,6.5217]
[1727349498324,6.5202,153.37,153.33,6.5217]
[1727349498529,6.5209,153.36,153.32,16.3049]
[1727349499241,6.5209,153.36,153.33,1.30418076]
[1727349499418,6.5209,153.36,153.32,16.3049]
[1727349499613,16.1281686,153.39,153.31,23.776884]
[1727349499818,6.5216,153.34,153.31,23.776884]
[1727349500010,16.2994,153.38,153.31,23.776884]
[1727349500011,6.5211,153.35,153.31,23.776884]
[1727349500213,6.5211,153.35,153.32,1.30422237]